bitfinex/quotes_BTCUSD_20240627
["timestamp","ask_amount","ask_price","bid_price","bid_amount"]
[1719467198997,0.914872,61067.0,61066.0,0.022]
[1719467198998,1.25233285,61067.0,61066.0,0.022]
[1719467201996,1.25233285,61067.0,61066.0,0.011]
[1719467202355,1.57984185,61067.0,61066.0,0.014]
[1719467202777,1.57984185,61067.0,61066.0,0.003]
[1719467203203,1.57984185,61067.0,61066.0,0.006]
[1719467203561,1.58984185,61067.0,61066.0,0.006]
[1719467204416,1.68984185,61067.0,61066.0,0.006]
[1719467204619,1.72030951,61067.0,61066.0,0.006]
[1719467205040,1.71030951,61067.0,61066.0,0.006]
[1719467205164,1.71028327,61067.0,61066.0,0.006]
[1719467205360,1.67984185,61067.0,61066.0,0.006]
[1719467205792,1.67984185,61067.0,61066.0,0.003]
[1719467205990,1.68084185,61067.0,61066.0,0.003]
[1719467206799,1.146372,61062.0,61061.0,0.000924]
[1719467207029,1.25242385,61062.0,61061.0,0.000924]
[1719467208703,1.25242385,61062.0,61061.0,0.002924]
[1719467209552,1.15632385,61062.0,61061.0,0.002924]
[1719467209754,1.25242385,61062.0,61061.0,0.002924]
[1719467210341,1.25242385,61062.0,61061.0,0.004924]
[1719467218349,1.27301324,61062.0,61061.0,0.004924]
[1719467219884,1.30485637,61062.0,61061.0,0.004924]
[1719467224524,1.63239137,61062.0,61061.0,0.004924]
[1719467224754,2.23226008,61062.0,61061.0,0.004924]
[1719467224927,2.13616008,61062.0,61061.0,0.004924]
[1719467225131,2.23226008,61062.0,61061.0,0.004924]
[1719467225510,2.06992637,61062.0,61061.0,0.004924]
[1719467226556,2.09988858,61062.0,61061.0,0.004924]
[1719467226930,2.06992637,61062.0,61061.0,0.004924]
[1719467227169,2.09988152,61062.0,61061.0,0.004924]
[1719467229028,1.90427139,61062.0,61061.0,0.004924]
[1719467229223,2.06803839,61062.0,61061.0,0.004924]
[1719467230044,2.05803839,61062.0,61061.0,0.004924]
[1719467230246,1.60444824,61062.0,61061.0,0.004924]
[1719467230676,1.70054824,61062.0,61061.0,0.084024]
[1719467231513,1.60444824,61062.0,61061.0,0.084724]
[1719467231712,1.69059639,61062.0,61061.0,0.149924]
[1719467232362,1.70054824,61062.0,61061.0,0.149924]
[1719467234733,1.63855524,61062.0,61061.0,0.149924]
[1719467245604,1.63939524,61062.0,61061.0,0.149924]
[1719467256209,1.63939524,61062.0,61061.0,0.084724]
[1719467256426,1.63939524,61062.0,61061.0,0.004924]
[1719467256839,1.7094849,61062.0,61061.0,0.004924]
[1719467257696,1.7094849,61062.0,61061.0,0.002924]
[1719467257697,2.0370199,61062.0,61061.0,0.002924]
[1719467257899,2.014707,61062.0,61061.0,0.002924]
[1719467258081,2.015707,61062.0,61061.0,0.002924]
[1719467258513,2.015707,61062.0,61061.0,0.000924]
[1719467261047,2.01587691,61062.0,61061.0,0.000924]
[1719467261409,2.01590977,61062.0,61061.0,0.000924]
[1719467261619,2.00451821,61062.0,61061.0,0.000924]
[1719467261839,2.04249775,61062.0,61061.0,0.000924]
[1719467264417,1.73897621,61062.0,61061.0,0.000924]
[1719467264730,1.77687146,61062.0,61061.0,0.000924]
[1719467264907,2.10440646,61062.0,61061.0,0.000924]
[1719467265406,2.07781849,61062.0,61061.0,0.000924]
[1719467267527,2.07785921,61062.0,61061.0,0.000924]
[1719467270791,2.03992324,61062.0,61061.0,0.000924]
[1719467270903,2.07793247,61062.0,61061.0,0.000924]
[1719467271287,2.07793258,61062.0,61061.0,0.000924]
[1719467274182,2.07846538,61062.0,61061.0,0.000924]
[1719467274711,2.10738018,61062.0,61061.0,0.000924]
[1719467275535,1.75925579,61062.0,61061.0,0.000924]
[1719467276268,2.08679079,61062.0,61061.0,0.000924]
[1719467277430,2.07195848,61062.0,61061.0,0.000924]
[1719467277642,2.11051912,61062.0,61061.0,0.000924]
[1719467280507,2.11055074,61062.0,61061.0,0.000924]
[1719467280976,2.11055063,61062.0,61061.0,0.000924]
[1719467281113,2.13623672,61062.0,61061.0,0.000924]
[1719467282938,2.136233,61062.0,61061.0,0.000924]
[1719467285332,2.136233,61062.0,61061.0,0.063124]
[1719467285333,2.13640144,61062.0,61061.0,0.063124]
[1719467285817,2.13640144,61062.0,61061.0,0.145324]
[1719467286331,2.1366699,61062.0,61061.0,0.145324]
[1719467287388,2.0405699,61062.0,61061.0,0.145324]
[1719467287587,2.1366699,61062.0,61061.0,0.145324]
[1719467289309,1.80927344,61062.0,61061.0,0.145324]
[1719467289512,1.80917995,61062.0,61061.0,0.145324]
[1719467289708,1.77010957,61062.0,61061.0,0.083124]
[1719467289913,2.14671776,61062.0,61061.0,0.000924]
[1719467291147,2.22696212,61062.0,61061.0,0.000924]
[1719467292459,2.17788893,61062.0,61061.0,0.000924]
[1719467292657,2.22716097,61062.0,61061.0,0.000924]
[1719467293286,2.22716097,61062.0,61061.0,0.077524]
[1719467293287,2.14691661,61062.0,61061.0,0.077524]
[1719467293489,2.1367195,61062.0,61061.0,0.077524]
[1719467294603,1.8091845,61062.0,61061.0,0.077524]
[1719467295572,1.75991246,61062.0,61061.0,0.077524]
[1719467295778,1.80973789,61062.0,61061.0,0.077524]
[1719467296894,1.78082309,61062.0,61061.0,0.077524]
[1719467297102,1.78082309,61062.0,61061.0,0.140424]
[1719467298792,1.7809596,61062.0,61061.0,0.140424]
[1719467299162,1.78121795,61062.0,61061.0,0.140424]
[1719467300597,1.73099766,61062.0,61061.0,0.140424]
[1719467303564,1.74116553,61062.0,61061.0,0.140424]
[1719467303808,1.73099766,61062.0,61061.0,0.140424]
[1719467306857,1.63489766,61062.0,61061.0,0.140424]
[1719467307109,1.73099766,61062.0,61061.0,0.140424]
[1719467307414,1.63489766,61062.0,61061.0,0.140424]
[1719467307652,1.70531157,61062.0,61061.0,0.140424]
[1719467308676,1.75545047,61062.0,61061.0,0.140424]
[1719467309399,1.75545425,61062.0,61061.0,0.140424]
[1719467310812,1.75542511,61062.0,61061.0,0.140424]
[1719467314313,1.75538065,61062.0,61061.0,0.140424]
[1719467315891,1.76538065,61062.0,61061.0,0.077524]
[1719467316632,1.76538065,61062.0,61061.0,0.000924]
[1719467317595,1.76569988,61062.0,61061.0,0.000924]
[1719467320906,1.76572821,61062.0,61061.0,0.000924]
[1719467322378,1.76569493,61062.0,61061.0,0.000924]
[1719467323508,1.71531157,61062.0,61061.0,0.000924]
[1719467323632,1.7657024,61062.0,61061.0,0.000924]
[1719467324322,1.76573771,61062.0,61061.0,0.000924]
[1719467326749,1.75573771,61062.0,61061.0,0.000924]
[1719467327163,1.75573771,61062.0,61061.0,0.149324]
[1719467327522,1.71548007,61062.0,61061.0,0.149324]
[1719467327743,1.65965035,61062.0,61061.0,0.149324]
[1719467327952,1.75575035,61062.0,61061.0,0.149324]
[1719467330791,1.70531157,61062.0,61061.0,0.149324]
[1719467330964,1.7556016,61062.0,61061.0,0.149324]
[1719467331476,1.75543784,61062.0,61061.0,0.149324]
[1719467334048,1.70531157,61062.0,61061.0,0.149324]
[1719467334228,1.75546676,61062.0,61061.0,0.149324]
[1719467334606,1.75546671,61062.0,61061.0,0.149324]
[1719467335416,1.70531157,61062.0,61061.0,0.149324]
[1719467335625,1.7555284,61062.0,61061.0,0.149324]
[1719467337551,1.75550031,61062.0,61061.0,0.149324]
[1719467340533,1.70531157,61062.0,61061.0,0.149324]
[1719467340776,1.7555,61062.0,61061.0,0.149324]
[1719467341336,1.75547898,61062.0,61061.0,0.149324]
[1719467343077,1.71548027,61062.0,61061.0,0.149324]
[1719467343278,1.75550628,61062.0,61061.0,0.149324]
[1719467343502,1.70531157,61062.0,61061.0,0.149324]
[1719467343704,1.75555859,61062.0,61061.0,0.149324]
[1719467344388,1.7555542,61062.0,61061.0,0.149324]
[1719467344617,1.75575131,61062.0,61061.0,0.149324]
[1719467346127,1.76575131,61062.0,61061.0,0.149324]
[1719467346465,1.76573081,61062.0,61061.0,0.149324]
[1719467346793,1.66963081,61062.0,61061.0,0.149324]
[1719467347010,1.76573081,61062.0,61061.0,0.149324]
[1719467347894,1.49400785,61056.0,61055.0,0.000924]
[1719467348086,1.49400785,61056.0,61039.0,0.12302788]
[1719467348087,0.00995185,61050.0,61045.0,0.1487]
[1719467348286,0.73622911,61056.0,61045.0,0.1487]
[1719467348288,1.26272485,61046.0,61045.0,0.1487]
[1719467348487,0.00995185,61039.0,61038.0,0.1487]
[1719467348685,0.92519885,61039.0,61038.0,0.1487]
[1719467348891,0.92519885,61039.0,61031.0,0.000924]
[1719467348892,0.50144785,61038.0,61034.0,0.1487]
[1719467349238,1.31147176,61038.0,61034.0,0.1487]
[1719467349378,1.26694064,61038.0,61034.0,0.1487]
[1719467349578,1.63845409,61038.0,61034.0,0.1487]
[1719467350386,1.63845409,61038.0,61037.0,0.001924]
[1719467350387,1.61160464,61038.0,61037.0,0.001924]
[1719467350784,1.60160464,61038.0,61037.0,0.001924]
[1719467350992,1.69770464,61038.0,61037.0,0.001924]
[1719467351597,1.70570464,61038.0,61037.0,0.002924]
[1719467352415,1.69553985,61038.0,61037.0,0.002924]
[1719467352611,1.70570548,61038.0,61037.0,0.002924]
[1719467353013,1.70570503,61038.0,61037.0,0.002924]
[1719467355721,1.69553985,61038.0,61037.0,0.002924]
[1719467355882,1.70570505,61038.0,61037.0,0.002924]
[1719467358975,1.69553985,61038.0,61037.0,0.002924]
[1719467359187,1.70570503,61038.0,61037.0,0.002924]
[1719467361153,1.72770148,61038.0,61037.0,0.002924]
[1719467362163,1.72770201,61038.0,61037.0,0.002924]
[1719467365460,1.72770195,61038.0,61037.0,0.002924]
[1719467365887,1.7175363,61038.0,61037.0,0.002924]
[1719467366063,1.72770198,61038.0,61037.0,0.002924]
[1719467368119,1.7533976,61038.0,61037.0,0.002924]
[1719467368326,1.7633976,61038.0,61037.0,0.002924]
[1719467368941,1.74323196,61038.0,61037.0,0.002924]
[1719467369167,1.75339757,61038.0,61037.0,0.002924]
[1719467369501,1.72770191,61038.0,61037.0,0.002924]
[1719467370876,1.63160191,61038.0,61037.0,0.002924]
[1719467371027,1.72770191,61038.0,61037.0,0.147324]
[1719467371822,1.7175363,61038.0,61037.0,0.147324]
[1719467372023,1.72770185,61038.0,61037.0,0.147324]
[1719467372563,1.7175363,61038.0,61037.0,0.147324]
[1719467372748,1.72770185,61038.0,61037.0,0.147324]
[1719467373532,1.293986,61038.0,61037.0,0.147324]
[1719467373735,1.390086,61038.0,61037.0,0.147324]
[1719467375017,1.40003785,61038.0,61037.0,0.147324]
[1719467375178,1.3898723,61038.0,61037.0,0.147324]
[1719467375374,1.40003838,61038.0,61037.0,0.147324]
[1719467376689,1.30393838,61038.0,61037.0,0.147324]
[1719467376867,1.40003838,61038.0,61037.0,0.147324]
[1719467377270,1.72770238,61038.0,61037.0,0.142724]
[1719467377467,1.77146793,61038.0,61037.0,0.142724]
[1719467377690,1.72770238,61038.0,61037.0,0.142724]
[1719467378540,1.77155993,61038.0,61037.0,0.142724]
[1719467381783,1.7175363,61038.0,61037.0,0.142724]
[1719467381981,1.77166022,61038.0,61037.0,0.142724]
[1719467383325,1.77165666,61038.0,61037.0,0.142724]
[1719467383552,1.72770194,61038.0,61037.0,0.142724]
[1719467384190,1.72770194,61038.0,61037.0,0.002924]
[1719467384393,1.77165548,61038.0,61037.0,0.002924]
[1719467384803,1.78165548,61038.0,61037.0,0.002924]
[1719467386873,1.77165548,61038.0,61037.0,0.002924]
[1719467388226,1.77152759,61038.0,61037.0,0.002924]
[1719467388936,1.78152759,61038.0,61037.0,0.002924]
[1719467390448,1.77152759,61038.0,61037.0,0.002924]
[1719467390595,1.78152759,61038.0,61037.0,0.002924]
[1719467391526,1.77152759,61038.0,61037.0,0.002924]
[1719467391683,1.78152759,61038.0,61037.0,0.002924]
[1719467391894,1.78142377,61038.0,61037.0,0.002924]
[1719467393369,1.94375748,61038.0,61037.0,0.002924]
[1719467393788,1.81268919,61038.0,61037.0,0.002924]
[1719467394362,2.14035319,61038.0,61037.0,0.002924]
[1719467394822,2.14037782,61038.0,61037.0,0.002924]
[1719467397841,2.08646572,61038.0,61037.0,0.002924]
[1719467398153,2.14044006,61038.0,61037.0,0.002924]
[1719467399308,2.13044006,61038.0,61037.0,0.002924]
[1719467399515,2.14044006,61038.0,61037.0,0.002924]
[1719467399714,2.13044006,61038.0,61037.0,0.002924]
[1719467399968,2.14044006,61038.0,61037.0,0.002924]
[1719467400799,2.08646572,61038.0,61037.0,0.002924]
[1719467401118,2.14049995,61038.0,61037.0,0.002924]
[1719467403670,2.0966305,61038.0,61037.0,0.002924]
[1719467403842,2.14049892,61038.0,61037.0,0.002924]
[1719467404045,2.14049892,61038.0,61031.0,0.000924]
[1719467404046,1.82227985,61032.0,61031.0,0.000924]
[1719467404273,1.82227985,61032.0,61021.0,0.0611]
[1719467404274,0.17382685,61022.0,61021.0,0.0611]
[1719467404423,1.26334161,61022.0,61021.0,0.0611]
[1719467404587,1.6349708,61022.0,61021.0,0.0611]
[1719467405207,1.6346615,61022.0,61021.0,0.0611]
[1719467405416,1.59078231,61022.0,61021.0,0.0611]
[1719467406086,1.59078231,61022.0,61021.0,0.0651]
[1719467406978,1.59078231,61022.0,61021.0,0.066024]
[1719467407453,1.59078231,61022.0,61021.0,0.147624]
[1719467408247,1.49468231,61022.0,61021.0,0.151624]
[1719467408426,1.59078231,61022.0,61021.0,0.151624]
[1719467409864,1.58061755,61022.0,61021.0,0.151624]
[1719467410074,1.59078378,61022.0,61021.0,0.151624]
[1719467410246,1.58061755,61022.0,61021.0,0.151624]
[1719467410444,1.59078559,61022.0,61021.0,0.151624]
[1719467413060,1.58061755,61022.0,61021.0,0.151624]
[1719467413281,1.59078544,61022.0,61021.0,0.151624]
[1719467415891,1.61258585,61022.0,61021.0,0.151624]
[1719467418604,1.61215094,61022.0,61021.0,0.151624]
[1719467419967,1.60198305,61022.0,61021.0,0.151624]
[1719467420169,1.61215091,61022.0,61021.0,0.151624]
[1719467422884,1.50609893,61022.0,61021.0,0.151624]
[1719467423130,1.27444893,61022.0,61021.0,0.151624]
[1719467423967,0.61894893,61022.0,61021.0,0.151624]
[1719467424251,0.01016773,61022.0,61021.0,0.31396298]
[1719467424449,0.17404273,61022.0,61021.0,0.17126298]
[1719467424654,0.163875,61022.0,61021.0,0.178516]
[1719467425216,0.163875,61022.0,61021.0,0.325316]
[1719467425437,0.17404644,61022.0,61021.0,0.325316]
[1719467425855,0.163875,61022.0,61021.0,0.325316]
[1719467426025,0.17404641,61022.0,61021.0,0.325316]
[1719467427004,0.17404641,61022.0,61021.0,0.335316]
[1719467427346,0.01017141,61022.0,61021.0,0.335316]
[1719467428091,0.491619,61023.0,61022.0,0.1492]
[1719467428327,0.491619,61023.0,61022.0,0.31877201]
[1719467428328,0.50179051,61023.0,61022.0,0.31877201]
[1719467429395,0.50119091,61023.0,61022.0,0.32477201]
[1719467429600,0.49101941,61023.0,61022.0,0.32477201]
[1719467429823,0.50119091,61023.0,61022.0,0.32477201]
[1719467430270,0.50119091,61023.0,61022.0,0.31753898]
[1719467430786,0.50119091,61023.0,61022.0,0.32477201]
[1719467430787,0.50119082,61023.0,61022.0,0.32477201]
[1719467432537,0.50119083,61023.0,61022.0,0.32477201]
[1719467435703,0.50119087,61023.0,61022.0,0.32477201]
[1719467436135,0.82893587,61023.0,61022.0,0.32477201]
[1719467438949,0.82893652,61023.0,61022.0,0.32477201]
[1719467439156,0.82893652,61023.0,61022.0,0.31753898]
[1719467439350,0.81876441,61023.0,61022.0,0.31753898]
[1719467439553,0.82893669,61023.0,61022.0,0.32477446]
[1719467440909,0.82893669,61023.0,61022.0,0.32569846]
[1719467441060,0.82977669,61023.0,61022.0,0.32569846]
[1719467442112,0.81960441,61023.0,61022.0,0.32569846]
[1719467442323,0.82977462,61023.0,61022.0,0.32569846]
[1719467445472,0.82946646,61023.0,61022.0,0.32569846]
[1719467448704,0.82946643,61023.0,61022.0,0.32569846]
[1719467450611,1.26326332,61023.0,61022.0,0.006924]
[1719467451789,1.2632626,61023.0,61022.0,0.006924]
[1719467454147,1.2632626,61023.0,61022.0,0.084824]
[1719467454361,1.25331075,61023.0,61022.0,0.084824]
[1719467454566,1.25331075,61023.0,61022.0,0.151524]
[1719467454996,1.15721075,61023.0,61022.0,0.151524]
[1719467455240,1.15690245,61023.0,61022.0,0.151524]
[1719467458349,1.15690409,61023.0,61022.0,0.151524]
[1719467458758,1.15690539,61023.0,61022.0,0.151524]
[1719467460565,1.16685724,61023.0,61022.0,0.151524]
[1719467460971,1.15668426,61023.0,61022.0,0.151524]
[1719467461329,1.16685729,61023.0,61022.0,0.151524]
[1719467462708,1.15690544,61023.0,61022.0,0.151524]
[1719467464091,1.15690464,61023.0,61022.0,0.151524]
[1719467465360,1.1565958,61023.0,61022.0,0.151524]
[1719467467024,1.16654765,61023.0,61022.0,0.084824]
[1719467467648,1.16654766,61023.0,61022.0,0.084824]
[1719467467867,1.15659581,61023.0,61022.0,0.084824]
[1719467469417,1.16654766,61023.0,61022.0,0.084824]
[1719467470362,1.16654763,61023.0,61022.0,0.084824]
[1719467470570,1.15659578,61023.0,61022.0,0.084824]
[1719467472426,1.16654763,61023.0,61022.0,0.084824]
[1719467472794,1.16654763,61023.0,61022.0,0.006924]
[1719467472994,1.49429263,61023.0,61022.0,0.006924]
[1719467473586,1.49429231,61023.0,61022.0,0.006924]
[1719467475131,1.48434046,61023.0,61022.0,0.006924]
[1719467475336,1.49429231,61023.0,61022.0,0.006924]
[1719467475955,1.49581774,61023.0,61022.0,0.006924]
[1719467476566,1.15812089,61023.0,61022.0,0.006924]
[1719467476874,1.147949,61023.0,61022.0,0.157124]
[1719467477035,0.83037594,61023.0,61022.0,0.157124]
[1719467477257,0.820204,61023.0,61022.0,0.157124]
[1719467477452,0.83037625,61023.0,61022.0,0.157124]
[1719467480126,0.83037653,61023.0,61022.0,0.157124]
[1719467483281,1.16807333,61023.0,61022.0,0.157124]
[1719467486595,1.15790085,61023.0,61022.0,0.157124]
[1719467486795,1.16807312,61023.0,61022.0,0.157124]
[1719467486993,1.15790085,61023.0,61022.0,0.157124]
[1719467487168,1.1680736,61023.0,61022.0,0.157124]
[1719467490086,1.1680736,61023.0,61022.0,0.090724]
[1719467490087,1.21304005,61023.0,61022.0,0.090724]
[1719467491282,1.21504218,61023.0,61022.0,0.090724]
[1719467493070,1.21562957,61023.0,61022.0,0.090724]
[1719467493396,1.22612852,61023.0,61022.0,0.090724]
[1719467495801,1.18057388,61023.0,61022.0,0.090724]
[1719467496229,1.17040193,61023.0,61022.0,0.090724]
[1719467496429,1.18057384,61023.0,61022.0,0.090724]
[1719467496905,1.18057416,61023.0,61022.0,0.090724]
[1719467499506,1.17040193,61023.0,61022.0,0.090724]
[1719467499713,1.18057368,61023.0,61022.0,0.090724]
[1719467501640,1.18057374,61023.0,61022.0,0.090724]
[1719467502833,1.17040193,61023.0,61022.0,0.090724]
[1719467503035,1.18057373,61023.0,61022.0,0.090724]
[1719467505293,1.18057368,61023.0,61022.0,0.090724]
[1719467505618,1.18141368,61023.0,61022.0,0.090724]
[1719467506243,1.18141369,61023.0,61022.0,0.090724]
[1719467509594,1.18141364,61023.0,61022.0,0.090724]
[1719467511533,1.27751364,61023.0,61022.0,0.090724]
[1719467512776,1.26734193,61023.0,61022.0,0.090724]
[1719467512966,1.27751369,61023.0,61022.0,0.090724]
[1719467516175,1.27751366,61023.0,61022.0,0.090724]
[1719467516389,1.26734193,61023.0,61022.0,0.090724]
[1719467516596,1.27751366,61023.0,61022.0,0.090724]
[1719467517587,1.60525866,61023.0,61022.0,0.090724]
[1719467517993,1.60525866,61023.0,61022.0,0.006924]
[1719467519379,1.94300419,61023.0,61022.0,0.006924]
[1719467519797,1.98786464,61023.0,61022.0,0.006924]
[1719467520411,2.08786464,61023.0,61022.0,0.006924]
[1719467521722,2.08724251,61023.0,61022.0,0.006924]
[1719467524585,2.03283193,61023.0,61022.0,0.006924]
[1719467524793,2.08748949,61023.0,61022.0,0.006924]
[1719467524992,2.03283193,61023.0,61022.0,0.006924]
[1719467525192,2.0874895,61023.0,61022.0,0.006924]
[1719467527923,2.08752292,61023.0,61022.0,0.006924]
[1719467530968,2.03283193,61023.0,61022.0,0.006924]
[1719467531128,2.08753378,61023.0,61022.0,0.006924]
[1719467534177,2.03283193,61023.0,61022.0,0.006924]
[1719467534362,2.08728869,61023.0,61022.0,0.006924]
[1719467534729,2.50727493,61023.0,61022.0,0.006924]
[1719467535085,2.70727493,61023.0,61022.0,0.006924]
[1719467535292,1.48516385,61008.0,61007.0,0.1472]
[1719467535505,0.51170585,61006.0,61005.0,0.0828]
[1719467535705,0.83955385,61005.0,61004.0,0.009229]
[1719467535911,1.17725841,61005.0,61004.0,0.009229]
[1719467536114,1.83294041,61005.0,61004.0,0.009229]
[1719467536734,2.30484439,61005.0,61004.0,0.009229]
[1719467537135,2.25061256,61005.0,61004.0,0.009229]
[1719467537336,2.3051951,61005.0,61004.0,0.009229]
[1719467538047,2.3051951,61005.0,61004.0,0.010229]
[1719467538252,2.3051951,61005.0,61004.0,0.008629]
[1719467539162,2.26078007,61005.0,61004.0,0.008629]
[1719467540412,2.25061256,61005.0,61004.0,0.008629]
[1719467540611,2.2607801,61005.0,61004.0,0.008629]
[1719467543704,2.25061256,61005.0,61004.0,0.008629]
[1719467543941,2.26078018,61005.0,61004.0,0.008629]
[1719467544219,2.26078019,61005.0,61004.0,0.008629]
[1719467544454,2.4231139,61005.0,61004.0,0.008629]
[1719467544677,2.4528285,61005.0,61004.0,0.008629]
[1719467545516,2.29018668,61005.0,61004.0,0.008629]
[1719467545719,2.31242651,61005.0,61004.0,0.008629]
[1719467546672,2.31242638,61005.0,61004.0,0.008629]
[1719467550117,2.30225888,61005.0,61004.0,0.008629]
[1719467550322,2.31242657,61005.0,61004.0,0.008629]
[1719467553380,2.31242669,61005.0,61004.0,0.008629]
[1719467554750,2.35679993,61005.0,61004.0,0.008629]
[1719467556819,2.35679058,61005.0,61004.0,0.008629]
[1719467557805,2.34740398,61005.0,61004.0,0.154129]
[1719467558007,2.32707598,61005.0,61004.0,0.154129]
[1719467558182,2.30773753,61005.0,61004.0,0.154129]
[1719467559110,2.32707598,61005.0,61004.0,0.154129]
[1719467559511,2.31768938,61005.0,61004.0,0.154129]
[1719467559915,2.31773022,61005.0,61004.0,0.154129]
[1719467560572,2.32711682,61005.0,61004.0,0.154129]
[1719467561521,2.31773022,61005.0,61004.0,0.154129]
[1719467562413,2.32711682,61005.0,61004.0,0.154129]
[1719467563378,2.32753692,61005.0,61004.0,0.154129]
[1719467563773,2.32754231,61005.0,61004.0,0.154129]
[1719467566564,2.32733284,61005.0,61004.0,0.154129]
[1719467566772,2.65200553,61005.0,61004.0,0.008629]
[1719467569633,2.65284553,61005.0,61004.0,0.008629]
[1719467569843,2.64193925,61005.0,61004.0,0.008629]
[1719467570065,2.65211121,61005.0,61004.0,0.008629]
[1719467570822,3.05211121,61005.0,61004.0,1e-08]
[1719467571074,3.05211121,61005.0,61000.0,4.8586411]
[1719467571075,2.35044745,61001.0,61000.0,4.8586411]
[1719467571249,2.66665652,61001.0,61000.0,4.8586411]
[1719467571478,2.76275652,61001.0,61000.0,4.8395884]
[1719467572602,2.67853116,61001.0,61000.0,4.8395884]
[1719467572805,3.00479587,61001.0,61000.0,4.8395884]
[1719467573009,3.00479587,61001.0,61000.0,4.81638649]
[1719467573010,2.86183354,61001.0,61000.0,4.81638649]
[1719467573224,3.00442968,61001.0,61000.0,4.81638649]
[1719467573424,2.86183354,61001.0,61000.0,4.81638649]
[1719467573628,3.0044293,61001.0,61000.0,4.81638649]
[1719467573830,2.65609559,61001.0,61000.0,4.81738649]
[1719467574934,2.5811754,61001.0,61000.0,4.81838649]
[1719467576294,2.52749983,61001.0,61000.0,4.81838649]
[1719467576496,2.58156614,61001.0,61000.0,4.81838649]
[1719467577675,2.58156614,61001.0,61000.0,4.75535649]
[1719467578653,2.58187303,61001.0,61000.0,4.75535649]
[1719467580289,2.78187303,61001.0,61000.0,4.75535649]
[1719467580487,2.58187303,61001.0,61000.0,4.75535649]
[1719467582283,2.58175374,61001.0,61000.0,4.75535649]
[1719467582476,2.58175017,61001.0,61000.0,4.75535649]
[1719467582885,2.78175017,61001.0,61000.0,4.75535649]
[1719467583090,2.98175017,61001.0,61000.0,4.63435649]
[1719467583300,3.14408388,61001.0,61000.0,4.63435649]
[1719467583508,3.16979072,61001.0,61000.0,4.63435649]
[1719467583711,3.16979072,61001.0,61000.0,4.60835649]
[1719467584065,3.16979072,61001.0,61000.0,4.58425649]
[1719467584734,3.16979072,61001.0,61000.0,4.56125649]
[1719467584909,2.96979072,61001.0,61000.0,4.56125649]
[1719467585108,3.16979072,61001.0,61000.0,4.56125649]
[1719467585313,3.11554666,61001.0,61000.0,4.56125649]
[1719467585490,3.16963964,61001.0,61000.0,4.56125649]
[1719467588145,3.16963964,61001.0,61000.0,4.53725649]
[1719467588537,3.16960302,61001.0,61000.0,4.53725649]
[1719467590826,3.16960302,61001.0,61000.0,4.41525649]
[1719467591845,3.16960946,61001.0,61000.0,4.41525649]
[1719467592808,3.16960946,61001.0,61000.0,4.38525649]
[1719467593691,3.16960946,61001.0,61000.0,4.35925649]
[1719467594995,3.11554666,61001.0,61000.0,4.35925649]
[1719467595199,3.16979592,61001.0,61000.0,4.35925649]
[1719467596721,3.16979592,61001.0,61000.0,4.33752649]
[1719467596870,3.16979592,61001.0,61000.0,4.15195649]
[1719467597076,4.27873739,61001.0,61000.0,3.32725649]
[1719467597286,4.25302427,61001.0,61000.0,3.32725649]
[1719467597706,4.25302427,61001.0,61000.0,3.20230649]
[1719467597907,4.52431427,61001.0,61000.0,3.04994991]
[1719467598117,4.52431427,61001.0,61000.0,3.0458418]
[1719467598340,4.52431427,61001.0,61000.0,3.04173334]
[1719467598341,4.5696577,61001.0,61000.0,3.04173334]
[1719467598799,4.5696577,61001.0,61000.0,3.03762488]
[1719467598975,4.5696577,61001.0,61000.0,2.83668488]
[1719467599188,6.8702157,61001.0,61000.0,0.67657095]
[1719467599330,6.8702157,61001.0,60972.0,0.48782074]
[1719467599331,0.17394985,60976.0,60972.0,0.48782074]
[1719467599535,0.17394985,60976.0,60971.0,0.08647338]
[1719467599536,0.82999885,60972.0,60971.0,0.08647338]
[1719467599756,1.540679,60972.0,60971.0,0.08647338]
[1719467599994,1.968698,60972.0,60971.0,0.08647338]
[1719467600198,0.83014685,60961.0,60958.0,0.01]
[1719467600421,0.83014685,60961.0,60944.0,0.08130346]
[1719467600422,0.84031643,60961.0,60960.0,0.019229]
[1719467600578,1.49647243,60961.0,60960.0,0.019229]
[1719467600772,1.49647243,60961.0,60960.0,0.086329]
[1719467601381,1.49646912,60961.0,60960.0,0.086329]
[1719467601589,1.15843927,60961.0,60960.0,0.182429]
[1719467601788,1.15843971,60961.0,60960.0,0.172429]
[1719467602019,0.59762271,60961.0,60960.0,0.36201088]
[1719467602193,0.00995185,60969.0,60961.0,0.0743]
[1719467602194,0.328073,60962.0,60961.0,0.0743]
[1719467602398,0.820182,60962.0,60961.0,0.33273898]
[1719467602578,0.492109,60962.0,60961.0,0.40863898]
[1719467603448,0.820182,60962.0,60961.0,0.40863898]
[1719467603634,0.821182,60962.0,60961.0,0.40863898]
[1719467603810,0.821182,60962.0,60961.0,0.35605007]
[1719467604013,0.821182,60962.0,60961.0,0.45215007]
[1719467604684,1.149255,60962.0,60961.0,0.45215007]
[1719467604942,1.150255,60962.0,60961.0,0.45215007]
[1719467605117,1.149255,60962.0,60961.0,0.45215007]
[1719467605253,1.15920685,60962.0,60961.0,0.31253898]
[1719467605460,1.16937355,60962.0,60961.0,0.31253898]
[1719467605925,1.16937355,60962.0,60961.0,0.1402]
[1719467605926,1.49744655,60962.0,60961.0,0.1402]
[1719467606082,1.49744655,60962.0,60960.0,0.009229]
[1719467606083,1.15822485,60961.0,60960.0,0.009229]
[1719467606308,1.49646955,60961.0,60960.0,0.009229]
[1719467606708,1.82454755,60961.0,60960.0,0.009229]
[1719467606978,1.98220035,60961.0,60960.0,0.009229]
[1719467607396,1.92454662,60961.0,60960.0,0.009229]
[1719467608351,1.92554662,60961.0,60960.0,0.009229]
[1719467608556,2.49282462,60961.0,60960.0,0.009229]
[1719467608856,2.49182462,60961.0,60960.0,0.009229]
[1719467609023,2.90028081,60961.0,60960.0,1e-08]
[1719467609220,3.21954107,60961.0,60960.0,1e-08]
[1719467609423,3.21954107,60961.0,60960.0,0.00100001]
[1719467609424,3.51214518,60961.0,60960.0,0.00100001]
[1719467609857,3.52614518,60961.0,60960.0,0.00100001]
[1719467610075,3.52614518,60961.0,60939.0,0.009229]
[1719467610076,0.00995185,60940.0,60939.0,0.009229]
[1719467610278,0.87895826,60940.0,60939.0,0.009229]
[1719467610563,1.53534026,60940.0,60939.0,0.009229]
[1719467610754,1.47990276,60940.0,60939.0,0.166029]